[Event "Early-Titled-Tuesday-Blitz-February-27-2024"]
[Site "Chess.com"]
[Date "2024.02.27"]
[Round "8"]
[White "orkinyo12345"]
[Black "djano"]
[Result "1-0"]
[WhiteElo "2489"]
[BlackElo "2599"]
[TimeControl "180+1"]
[EndTime "9:28:13 PST"]
[Termination "orkinyo12345 won by resignation"]

1. d4 {[%clk 0:03:00.9]} 1... Nf6 {[%clk 0:02:58.1]} 2. Nf3 {[%clk 0:03:00.3]}
2... g6 {[%clk 0:02:57.4]} 3. c4 {[%clk 0:03:00.1]} 3... Bg7 {[%clk 0:02:57.9]}
4. g3 {[%clk 0:03:00.4]} 4... O-O {[%clk 0:02:57.7]} 5. Bg2 {[%clk 0:03:01]}
5... d6 {[%clk 0:02:58.3]} 6. Nc3 {[%clk 0:03:01.6]} 6... Nc6 {[%clk 0:02:58.1]}
7. d5 {[%clk 0:03:02]} 7... Na5 {[%clk 0:02:57.2]} 8. b3 {[%clk 0:03:02.4]} 8...
c5 {[%clk 0:02:54.6]} 9. Bb2 {[%clk 0:02:57.1]} 9... e6 {[%clk 0:02:53.3]} 10.
dxe6 {[%clk 0:02:55.9]} 10... Bxe6 {[%clk 0:02:54.2]} 11. O-O {[%clk 0:02:44.9]}
11... Re8 {[%clk 0:02:53.5]} 12. Qd2 {[%clk 0:02:40.5]} 12... d5 {[%clk
0:02:40.9]} 13. cxd5 {[%clk 0:02:22.5]} 13... Nxd5 {[%clk 0:02:39.7]} 14. Nxd5
{[%clk 0:02:20.1]} 14... Qxd5 {[%clk 0:02:00.1]} 15. Bxg7 {[%clk 0:02:14.7]}
15... Qxd2 {[%clk 0:02:00]} 16. Nxd2 {[%clk 0:02:15.6]} 16... Kxg7 {[%clk
0:02:00]} 17. Rac1 {[%clk 0:02:15.9]} 17... Rad8 {[%clk 0:01:54.4]} 18. Rxc5
{[%clk 0:02:05.7]} 18... Rxd2 {[%clk 0:01:49.1]} 19. Rxa5 {[%clk 0:02:04.7]}
19... Rxe2 {[%clk 0:01:37.3]} 20. Bxb7 {[%clk 0:01:55.1]} 20... Re7 {[%clk
0:01:17.7]} 21. Bf3 {[%clk 0:01:54]} 21... Rb2 {[%clk 0:01:13.3]} 22. h4 {[%clk
0:01:53.3]} 22... Bh3 {[%clk 0:01:07.7]} 23. Rd1 {[%clk 0:01:51.6]} 23... h5
{[%clk 0:01:04]} 24. Ra4 {[%clk 0:01:22.5]} 24... Rc7 {[%clk 0:00:57.3]} 25. Be4
{[%clk 0:01:01.3]} 25... Bg4 {[%clk 0:00:50.5]} 26. Rf1 {[%clk 0:00:53.4]} 26...
Rd7 {[%clk 0:00:41.5]} 27. Kg2 {[%clk 0:00:38.9]} 27... a6 {[%clk 0:00:31.6]}
28. Bf3 {[%clk 0:00:37.1]} 28... Bf5 {[%clk 0:00:30.8]} 29. Rd1 {[%clk 0:00:32]}
29... Rc7 {[%clk 0:00:28.2]} 30. Rf1 {[%clk 0:00:11.7]} 30... Rcc2 {[%clk
0:00:26.5]} 31. Rd4 {[%clk 0:00:07.6]} 31... Rxa2 {[%clk 0:00:25.7]} 32. Be4
{[%clk 0:00:07.7]} 32... Bxe4+ {[%clk 0:00:20.1]} 33. Rxe4 {[%clk 0:00:08.6]}
33... Rcb2 {[%clk 0:00:20.7]} 34. b4 {[%clk 0:00:08.8]} 34... Ra4 {[%clk
0:00:20.3]} 35. Rc1 {[%clk 0:00:08.6]} 35... Raa2 {[%clk 0:00:18.8]} 36. Rf4
{[%clk 0:00:08]} 36... Ra4 {[%clk 0:00:18.4]} 37. Rc7 {[%clk 0:00:07.4]} 37...
g5 {[%clk 0:00:07.7]} 38. Rfxf7+ {[%clk 0:00:08.3]} 38... Kg6 {[%clk 0:00:07.6]}
39. Rg7+ {[%clk 0:00:08.5]} 39... Kf5 {[%clk 0:00:07.5]} 40. Rxg5+ {[%clk
0:00:08.8]} 40... Ke4 {[%clk 0:00:07.4]} 41. Re7+ {[%clk 0:00:08.4]} 41... Kd4
{[%clk 0:00:07.6]} 42. Rxh5 {[%clk 0:00:08]} 42... Raa2 {[%clk 0:00:08]} 43. Rf7
{[%clk 0:00:07.9]} 43... Kc4 {[%clk 0:00:08]} 44. Rf4+ {[%clk 0:00:07.9]} 44...
Kb3 {[%clk 0:00:08.2]} 45. Ra5 {[%clk 0:00:08.8]} 45... Rxa5 {[%clk 0:00:05.3]}
46. bxa5 {[%clk 0:00:09.7]} 46... Ra2 {[%clk 0:00:06.2]} 47. Rf5 {[%clk
0:00:10.2]} 47... Kb4 {[%clk 0:00:06.3]} 48. g4 {[%clk 0:00:10.5]} 48... Ra3
{[%clk 0:00:05.3]} 49. h5 {[%clk 0:00:10.6]} 49... Kc4 {[%clk 0:00:05.8]} 50. h6
{[%clk 0:00:10.5]} 50... Kd4 {[%clk 0:00:06.7]} 51. h7 {[%clk 0:00:10.8]} 1-0

[Event "Early-Titled-Tuesday-Blitz-February-27-2024"]
[Site "Chess.com"]
[Date "2024.02.27"]
[Round "8"]
[White "lluiss"]
[Black "cthake"]
[Result "1-0"]
[WhiteElo "2167"]
[BlackElo "1826"]
[TimeControl "180+1"]
[EndTime "9:28:13 PST"]
[Termination "lluiss won by checkmate"]

1. e4 {[%clk 0:03:00.9]} 1... c5 {[%clk 0:02:59.9]} 2. Nf3 {[%clk 0:03:00.2]}
2... Nc6 {[%clk 0:02:57]} 3. d4 {[%clk 0:03:00.2]} 3... cxd4 {[%clk 0:02:57.1]}
4. Nxd4 {[%clk 0:03:00.7]} 4... Nf6 {[%clk 0:02:57.5]} 5. Nc3 {[%clk 0:02:59.6]}
5... e5 {[%clk 0:02:57.6]} 6. Nxc6 {[%clk 0:02:59.3]} 6... bxc6 {[%clk
0:02:56.1]} 7. Bc4 {[%clk 0:02:58.5]} 7... Bb4 {[%clk 0:02:55.4]} 8. Bg5 {[%clk
0:02:58.1]} 8... Bxc3+ {[%clk 0:02:53.1]} 9. bxc3 {[%clk 0:02:56.9]} 9... O-O
{[%clk 0:02:45.3]} 10. O-O {[%clk 0:02:52.4]} 10... d6 {[%clk 0:02:38.5]} 11.
Qf3 {[%clk 0:02:51]} 11... Be6 {[%clk 0:02:36.5]} 12. Bb3 {[%clk 0:02:50.9]}
12... a5 {[%clk 0:02:35.2]} 13. Rfd1 {[%clk 0:02:41.1]} 13... a4 {[%clk
0:02:20.7]} 14. Bxe6 {[%clk 0:02:40]} 14... fxe6 {[%clk 0:02:20.6]} 15. Qd3
{[%clk 0:02:40]} 15... d5 {[%clk 0:02:16.3]} 16. c4 {[%clk 0:02:05.5]} 16... Qb6
{[%clk 0:01:50.9]} 17. Bxf6 {[%clk 0:01:32.9]} 17... Rxf6 {[%clk 0:01:49.8]} 18.
exd5 {[%clk 0:01:33]} 18... Rxf2 {[%clk 0:01:43.5]} 19. Kh1 {[%clk 0:01:26.1]}
19... cxd5 {[%clk 0:01:34.8]} 20. cxd5 {[%clk 0:01:25.6]} 20... Rd8 {[%clk
0:01:22.6]} 21. d6 {[%clk 0:01:04.3]} 21... e4 {[%clk 0:01:19.4]} 22. Qxe4
{[%clk 0:00:34.1]} 22... Rxd6 {[%clk 0:01:18.6]} 23. Qa8+ {[%clk 0:00:27.4]}
23... Rf8 {[%clk 0:01:14]} 24. Rxd6 {[%clk 0:00:26.3]} 24... Qxd6 {[%clk
0:01:13.3]} 25. Qxa4 {[%clk 0:00:26.1]} 25... Qe5 {[%clk 0:01:00.2]} 26. Rg1
{[%clk 0:00:24]} 26... Qf4 {[%clk 0:00:54.7]} 27. Qb3 {[%clk 0:00:23.5]} 27...
Qf6 {[%clk 0:00:44.8]} 28. h3 {[%clk 0:00:22.6]} 28... Kh8 {[%clk 0:00:44.1]}
29. Re1 {[%clk 0:00:22.3]} 29... e5 {[%clk 0:00:43]} 30. a4 {[%clk 0:00:20.3]}
30... Qf4 {[%clk 0:00:32.7]} 31. a5 {[%clk 0:00:18.3]} 31... e4 {[%clk
0:00:33.1]} 32. a6 {[%clk 0:00:16.9]} 32... Rb8 {[%clk 0:00:24.6]} 33. Qc4
{[%clk 0:00:09.2]} 33... Qd6 {[%clk 0:00:19.6]} 34. a7 {[%clk 0:00:07.5]} 34...
Ra8 {[%clk 0:00:19.3]} 35. Qxe4 {[%clk 0:00:07.8]} 35... Qd8 {[%clk 0:00:17]}
36. Qe3 {[%clk 0:00:06.2]} 36... Qf8 {[%clk 0:00:15.4]} 37. Ra1 {[%clk
0:00:04.8]} 37... Qc8 {[%clk 0:00:14.9]} 38. Qf2 {[%clk 0:00:03.6]} 38... Qe8
{[%clk 0:00:14.2]} 39. Qb6 {[%clk 0:00:03.4]} 39... Qc8 {[%clk 0:00:14]} 40. Rb1
{[%clk 0:00:02.9]} 40... Qe8 {[%clk 0:00:12.5]} 41. Qb8 {[%clk 0:00:03]} 41...
Rxb8 {[%clk 0:00:09.5]} 42. axb8=Q {[%clk 0:00:02.5]} 42... Qg8 {[%clk
0:00:08.1]} 43. Qxg8+ {[%clk 0:00:02.1]} 43... Kxg8 {[%clk 0:00:08.4]} 44. Rc1
{[%clk 0:00:02.2]} 44... Kf7 {[%clk 0:00:09]} 45. c4 {[%clk 0:00:03.1]} 45...
Ke6 {[%clk 0:00:09.6]} 46. c5 {[%clk 0:00:04]} 46... Kd7 {[%clk 0:00:10.2]} 47.
c6+ {[%clk 0:00:04.9]} 47... Kc7 {[%clk 0:00:10.8]} 48. Kh2 {[%clk 0:00:05.5]}
48... Kc8 {[%clk 0:00:11.1]} 49. Kg3 {[%clk 0:00:06.4]} 49... Kc7 {[%clk
0:00:12]} 50. Kf4 {[%clk 0:00:07.3]} 50... Kc8 {[%clk 0:00:12.7]} 51. Ke4 {[%clk
0:00:08.2]} 51... Kc7 {[%clk 0:00:13.5]} 52. Kd3 {[%clk 0:00:09.1]} 52... Kc8
{[%clk 0:00:14.3]} 53. Kd4 {[%clk 0:00:10]} 53... Kc7 {[%clk 0:00:15.2]} 54. Kd5
{[%clk 0:00:10.6]} 54... Kc8 {[%clk 0:00:15.6]} 55. Kd6 {[%clk 0:00:10.9]} 55...
g6 {[%clk 0:00:15.9]} 56. Rf1 {[%clk 0:00:09.7]} 56... h5 {[%clk 0:00:16.7]} 57.
Rf8# {[%clk 0:00:09.6]} 1-0

[Event "Early-Titled-Tuesday-Blitz-February-27-2024"]
[Site "Chess.com"]
[Date "2024.02.27"]
[Round "8"]
[White "stollenmonster"]
[Black "Skatchkov_V"]
[Result "1-0"]
[WhiteElo "2886"]
[BlackElo "2665"]
[TimeControl "180+1"]
[EndTime "9:28:14 PST"]
[Termination "stollenmonster won by resignation"]

1. e4 {[%clk 0:03:00.9]} 1... e5 {[%clk 0:02:58]} 2. Nc3 {[%clk 0:03:00.4]} 2...
Nf6 {[%clk 0:02:56.2]} 3. g3 {[%clk 0:03:00.6]} 3... d5 {[%clk 0:02:55.5]} 4.
exd5 {[%clk 0:03:01.5]} 4... Nxd5 {[%clk 0:02:55.5]} 5. Bg2 {[%clk 0:03:02.2]}
5... Nxc3 {[%clk 0:02:52.5]} 6. bxc3 {[%clk 0:03:03.1]} 6... Nc6 {[%clk
0:02:52.2]} 7. d3 {[%clk 0:03:03.4]} 7... Bc5 {[%clk 0:02:50.6]} 8. Ne2 {[%clk
0:03:03.8]} 8... O-O {[%clk 0:02:49]} 9. O-O {[%clk 0:03:04.5]} 9... Be6 {[%clk
0:02:49.6]} 10. c4 {[%clk 0:03:04.1]} 10... Qd7 {[%clk 0:02:25]} 11. Be3 {[%clk
0:03:03.4]} 11... Bxe3 {[%clk 0:01:49.7]} 12. fxe3 {[%clk 0:03:04.3]} 12... b6
{[%clk 0:01:40.8]} 13. Nc3 {[%clk 0:03:04.4]} 13... Rad8 {[%clk 0:01:31]} 14.
Qh5 {[%clk 0:02:50.5]} 14... f6 {[%clk 0:01:19.9]} 15. Nd5 {[%clk 0:02:40.8]}
15... Ne7 {[%clk 0:01:12.4]} 16. Nxe7+ {[%clk 0:02:06.8]} 16... Qxe7 {[%clk
0:01:11.2]} 17. Be4 {[%clk 0:01:59.1]} 17... g6 {[%clk 0:01:09.9]} 18. Qe2
{[%clk 0:01:58.6]} 18... Qc5 {[%clk 0:00:59]} 19. Rab1 {[%clk 0:01:57.5]} 19...
a6 {[%clk 0:00:53.6]} 20. c3 {[%clk 0:01:34]} 20... Kg7 {[%clk 0:00:53.5]} 21.
Rfc1 {[%clk 0:01:29.7]} 21... Rd7 {[%clk 0:00:49.6]} 22. a4 {[%clk 0:01:18.4]}
22... Rfd8 {[%clk 0:00:49.2]} 23. Rb4 {[%clk 0:01:13.1]} 23... f5 {[%clk
0:00:47.3]} 24. d4 {[%clk 0:01:05.5]} 24... exd4 {[%clk 0:00:44.4]} 25. exd4
{[%clk 0:01:05.4]} 25... Rxd4 {[%clk 0:00:42.2]} 26. cxd4 {[%clk 0:01:06.3]}
26... Qxb4 {[%clk 0:00:22.9]} 27. Bg2 {[%clk 0:01:03.5]} 27... Qd6 {[%clk
0:00:20.8]} 28. Kh1 {[%clk 0:00:57.9]} 28... Bf7 {[%clk 0:00:19.9]} 29. Rd1
{[%clk 0:00:54.6]} 29... Re8 {[%clk 0:00:19.9]} 30. Qd3 {[%clk 0:00:51.2]} 30...
Qb4 {[%clk 0:00:16.7]} 31. d5 {[%clk 0:00:51.2]} 31... Re1+ {[%clk 0:00:17]} 32.
Bf1 {[%clk 0:00:51.2]} 32... Rxd1 {[%clk 0:00:08.5]} 33. Qxd1 {[%clk 0:00:52.1]}
33... Qc3 {[%clk 0:00:08.3]} 34. Qe2 {[%clk 0:00:46.3]} 34... Kf6 {[%clk
0:00:07.9]} 35. Kg2 {[%clk 0:00:43.5]} 35... h6 {[%clk 0:00:08]} 36. h4 {[%clk
0:00:43.3]} 36... Qe5 {[%clk 0:00:08.6]} 37. Qd2 {[%clk 0:00:41.3]} 37... Be8
{[%clk 0:00:08.8]} 38. Qxh6 {[%clk 0:00:39.3]} 38... Qe4+ {[%clk 0:00:04.1]} 39.
Kh2 {[%clk 0:00:39]} 39... Bxa4 {[%clk 0:00:02.9]} 40. Qh8+ {[%clk 0:00:37.4]}
40... Ke7 {[%clk 0:00:03.4]} 41. Qg7+ {[%clk 0:00:35.1]} 41... Kd6 {[%clk
0:00:03.8]} 42. Qxg6+ {[%clk 0:00:35.7]} 42... Kc5 {[%clk 0:00:04.5]} 43. Bg2
{[%clk 0:00:34.5]} 43... Qe2 {[%clk 0:00:01.8]} 44. Qxf5 {[%clk 0:00:30.3]}
44... Bc2 {[%clk 0:00:02.4]} 45. Qf4 {[%clk 0:00:27.4]} 45... a5 {[%clk
0:00:02.8]} 46. Qxc7+ {[%clk 0:00:27.2]} 46... Kd4 {[%clk 0:00:03]} 47. Qxb6+
{[%clk 0:00:27.3]} 47... Ke5 {[%clk 0:00:01.7]} 48. Qe6+ {[%clk 0:00:26.9]} 1-0

[Event "Early-Titled-Tuesday-Blitz-February-27-2024"]
[Site "Chess.com"]
[Date "2024.02.27"]
[Round "8"]
[White "xasid81"]
[Black "BardArtem"]
[Result "1-0"]
[WhiteElo "2560"]
[BlackElo "2738"]
[TimeControl "180+1"]
[EndTime "9:28:14 PST"]
[Termination "xasid81 won by checkmate"]

1. d4 {[%clk 0:03:00.9]} 1... Nf6 {[%clk 0:02:53.8]} 2. Nf3 {[%clk 0:03:00.4]}
2... b6 {[%clk 0:02:53.7]} 3. g3 {[%clk 0:02:59.6]} 3... Bb7 {[%clk 0:02:53]} 4.
Bg2 {[%clk 0:03:00.2]} 4... g6 {[%clk 0:02:53.2]} 5. O-O {[%clk 0:03:00.7]} 5...
Bg7 {[%clk 0:02:53.4]} 6. b3 {[%clk 0:03:01.3]} 6... O-O {[%clk 0:02:53.3]} 7.
Bb2 {[%clk 0:03:01.9]} 7... e6 {[%clk 0:02:50]} 8. Nbd2 {[%clk 0:03:02.4]} 8...
d5 {[%clk 0:02:44.1]} 9. Re1 {[%clk 0:03:01.6]} 9... Nbd7 {[%clk 0:02:44.1]} 10.
c4 {[%clk 0:03:01.1]} 10... c5 {[%clk 0:02:42.3]} 11. Ne5 {[%clk 0:02:58.8]}
11... Nxe5 {[%clk 0:02:37.7]} 12. dxe5 {[%clk 0:02:59.7]} 12... Ng4 {[%clk
0:02:31.2]} 13. cxd5 {[%clk 0:02:56.6]} 13... Nxe5 {[%clk 0:02:19.3]} 14. dxe6
{[%clk 0:02:52.9]} 14... Bxg2 {[%clk 0:02:04.1]} 15. Kxg2 {[%clk 0:02:41.4]}
15... Qd5+ {[%clk 0:01:58.4]} 16. Nf3 {[%clk 0:02:28.9]} 16... Qxe6 {[%clk
0:01:55.3]} 17. Bxe5 {[%clk 0:02:28.9]} 17... Bxe5 {[%clk 0:01:56.2]} 18. Nxe5
{[%clk 0:02:29.5]} 18... Qxe5 {[%clk 0:01:56.4]} 19. Qc2 {[%clk 0:02:27.3]}
19... Rad8 {[%clk 0:01:44.3]} 20. Rad1 {[%clk 0:02:26.7]} 20... h5 {[%clk
0:01:43.2]} 21. h4 {[%clk 0:02:26.2]} 21... Rfe8 {[%clk 0:01:42.8]} 22. e3
{[%clk 0:02:22.7]} 22... Qe6 {[%clk 0:01:39.9]} 23. Kg1 {[%clk 0:02:17.5]} 23...
Qg4 {[%clk 0:01:38.4]} 24. Rxd8 {[%clk 0:02:09.3]} 24... Rxd8 {[%clk 0:01:39.3]}
25. Qe2 {[%clk 0:02:09.2]} 25... Qxe2 {[%clk 0:01:35.3]} 26. Rxe2 {[%clk
0:02:10.1]} 26... Kg7 {[%clk 0:01:36.1]} 27. Rc2 {[%clk 0:02:04.6]} 27... Kf6
{[%clk 0:01:35.7]} 28. Kf1 {[%clk 0:02:04.8]} 28... Kf5 {[%clk 0:01:34.1]} 29.
Ke2 {[%clk 0:02:05.3]} 29... f6 {[%clk 0:01:30.4]} 30. a3 {[%clk 0:01:59.7]}
30... g5 {[%clk 0:01:30.5]} 31. Rc4 {[%clk 0:01:59]} 31... Re8 {[%clk
0:01:19.8]} 32. Kf3 {[%clk 0:01:45.4]} 32... g4+ {[%clk 0:01:09.6]} 33. Ke2
{[%clk 0:01:45]} 33... Re4 {[%clk 0:01:10.2]} 34. Kd3 {[%clk 0:01:37.9]} 34...
Rxc4 {[%clk 0:00:59.3]} 35. bxc4 {[%clk 0:01:38.8]} 35... Ke5 {[%clk 0:00:49]}
36. e4 {[%clk 0:01:35.8]} 36... Ke6 {[%clk 0:00:30.4]} 37. a4 {[%clk 0:01:32.1]}
37... Ke5 {[%clk 0:00:21.9]} 38. Ke3 {[%clk 0:01:31.7]} 38... a6 {[%clk
0:00:19.9]} 39. Kd3 {[%clk 0:01:20.4]} 39... Ke6 {[%clk 0:00:19.4]} 40. Ke2
{[%clk 0:01:17.4]} 40... Kd6 {[%clk 0:00:18.8]} 41. f3 {[%clk 0:01:13.4]} 41...
gxf3+ {[%clk 0:00:08.4]} 42. Kxf3 {[%clk 0:01:14.3]} 42... Ke5 {[%clk
0:00:08.1]} 43. Ke3 {[%clk 0:01:13.3]} 43... f5 {[%clk 0:00:08.7]} 44. exf5
{[%clk 0:01:10.8]} 44... Kxf5 {[%clk 0:00:09.6]} 45. Kf3 {[%clk 0:01:10.4]}
45... a5 {[%clk 0:00:09.2]} 46. g4+ {[%clk 0:01:07.1]} 46... hxg4+ {[%clk
0:00:08]} 47. Kg3 {[%clk 0:01:07.8]} 47... Ke5 {[%clk 0:00:04.7]} 48. Kxg4
{[%clk 0:00:59.3]} 48... b5 {[%clk 0:00:04.9]} 49. cxb5 {[%clk 0:00:55.6]} 49...
c4 {[%clk 0:00:05.8]} 50. b6 {[%clk 0:00:53.2]} 50... c3 {[%clk 0:00:05.5]} 51.
b7 {[%clk 0:00:53.2]} 51... Kd4 {[%clk 0:00:04]} 52. b8=Q {[%clk 0:00:52.7]}
52... Kd3 {[%clk 0:00:04.9]} 53. Qf4 {[%clk 0:00:51.3]} 53... c2 {[%clk
0:00:02.3]} 54. Qc1 {[%clk 0:00:51.1]} 54... Kc3 {[%clk 0:00:03.2]} 55. h5
{[%clk 0:00:51.3]} 55... Kb3 {[%clk 0:00:03.7]} 56. h6 {[%clk 0:00:51.6]} 56...
Ka2 {[%clk 0:00:03.5]} 57. h7 {[%clk 0:00:51.3]} 57... Kb3 {[%clk 0:00:03.1]}
58. h8=Q {[%clk 0:00:51.3]} 58... Kxa4 {[%clk 0:00:03.5]} 59. Qxc2+ {[%clk
0:00:48.3]} 59... Kb4 {[%clk 0:00:01.3]} 60. Qd4+ {[%clk 0:00:47.7]} 60... Ka3
{[%clk 0:00:01.2]} 61. Qdc3# {[%clk 0:00:42.1]} 1-0

[Event "Early-Titled-Tuesday-Blitz-February-27-2024"]
[Site "Chess.com"]
[Date "2024.02.27"]
[Round "8"]
[White "the_blue_pill"]
[Black "Hananmo"]
[Result "1-0"]
[WhiteElo "2421"]
[BlackElo "2513"]
[TimeControl "180+1"]
[EndTime "9:28:16 PST"]
[Termination "the_blue_pill won by resignation"]

1. e4 {[%clk 0:02:56.7]} 1... c5 {[%clk 0:02:45.5]} 2. Nf3 {[%clk 0:02:50.9]}
2... e6 {[%clk 0:02:46]} 3. c3 {[%clk 0:02:39.9]} 3... d5 {[%clk 0:02:43.9]} 4.
e5 {[%clk 0:02:40.5]} 4... Nc6 {[%clk 0:02:34.1]} 5. d4 {[%clk 0:02:41.4]} 5...
Qb6 {[%clk 0:02:33.8]} 6. a3 {[%clk 0:02:40.8]} 6... Nh6 {[%clk 0:02:28.9]} 7.
b4 {[%clk 0:02:40.8]} 7... cxd4 {[%clk 0:02:28.5]} 8. cxd4 {[%clk 0:02:41.7]}
8... Nf5 {[%clk 0:02:28.8]} 9. Be3 {[%clk 0:02:41.6]} 9... Bd7 {[%clk
0:02:22.2]} 10. Bd3 {[%clk 0:02:40.7]} 10... Be7 {[%clk 0:02:14.4]} 11. O-O
{[%clk 0:02:37.6]} 11... h5 {[%clk 0:02:12.1]} 12. Nc3 {[%clk 0:02:36]} 12... g6
{[%clk 0:02:09]} 13. Na4 {[%clk 0:02:34.1]} 13... Qd8 {[%clk 0:02:06.4]} 14. Rc1
{[%clk 0:02:30.6]} 14... h4 {[%clk 0:02:01.4]} 15. h3 {[%clk 0:02:26.3]} 15...
Nxe3 {[%clk 0:01:52.4]} 16. fxe3 {[%clk 0:02:25.7]} 16... Bg5 {[%clk 0:01:53]}
17. Nxg5 {[%clk 0:02:17.4]} 17... Qxg5 {[%clk 0:01:52]} 18. Qf3 {[%clk
0:02:18.1]} 18... O-O {[%clk 0:01:48.4]} 19. Nc5 {[%clk 0:02:15.4]} 19... Bc8
{[%clk 0:01:47.2]} 20. Bb5 {[%clk 0:02:09.3]} 20... Ne7 {[%clk 0:01:44.9]} 21.
Bd3 {[%clk 0:02:02]} 21... b6 {[%clk 0:01:41.1]} 22. Nb3 {[%clk 0:02:00.6]}
22... a5 {[%clk 0:01:34.8]} 23. bxa5 {[%clk 0:01:53.6]} 23... bxa5 {[%clk
0:01:35.7]} 24. Rc7 {[%clk 0:01:53.5]} 24... Ba6 {[%clk 0:01:24.5]} 25. Bxa6
{[%clk 0:01:48.7]} 25... Rxa6 {[%clk 0:01:25.4]} 26. Nc5 {[%clk 0:01:49.1]}
26... Raa8 {[%clk 0:01:15.5]} 27. Nd7 {[%clk 0:01:48.2]} 27... Nf5 {[%clk
0:01:16.1]} 28. Nxf8 {[%clk 0:01:40.2]} 28... Rxf8 {[%clk 0:01:17]} 29. Qf4
{[%clk 0:01:36.4]} 29... Qxf4 {[%clk 0:01:12.2]} 30. Rxf4 {[%clk 0:01:36.6]}
30... Rb8 {[%clk 0:01:09.5]} 31. Ra7 {[%clk 0:01:19.9]} 31... Rb1+ {[%clk
0:01:04.4]} 32. Kf2 {[%clk 0:01:18.2]} 32... Rb5 {[%clk 0:00:46.2]} 33. Kf3
{[%clk 0:01:09.5]} 33... Kg7 {[%clk 0:00:45]} 34. a4 {[%clk 0:01:06]} 34... Rb3
{[%clk 0:00:41.5]} 35. Rxf5 {[%clk 0:01:06.6]} 35... gxf5 {[%clk 0:00:40]} 36.
Rxa5 {[%clk 0:01:07.3]} 36... Rb2 {[%clk 0:00:37.7]} 37. Ra8 {[%clk 0:01:03.3]}
37... Ra2 {[%clk 0:00:37.6]} 38. a5 {[%clk 0:01:03.6]} 38... Ra3 {[%clk
0:00:37.2]} 39. a6 {[%clk 0:01:03.4]} 39... Ra2 {[%clk 0:00:37.5]} 40. a7 {[%clk
0:01:03.6]} 40... Ra1 {[%clk 0:00:32.5]} 41. g3 {[%clk 0:00:52]} 41... hxg3
{[%clk 0:00:31.7]} 42. Kxg3 {[%clk 0:00:52.3]} 42... Ra3 {[%clk 0:00:32.4]} 43.
Kf4 {[%clk 0:00:43.7]} 43... Ra1 {[%clk 0:00:32.5]} 44. h4 {[%clk 0:00:42.2]}
44... Rf1+ {[%clk 0:00:32.7]} 45. Kg3 {[%clk 0:00:41.6]} 45... Rg1+ {[%clk
0:00:33.2]} 46. Kf2 {[%clk 0:00:41.2]} 46... Ra1 {[%clk 0:00:33.6]} 47. h5
{[%clk 0:00:41.9]} 47... Ra2+ {[%clk 0:00:33]} 48. Kf3 {[%clk 0:00:42.2]} 48...
Ra1 {[%clk 0:00:32.8]} 49. h6+ {[%clk 0:00:37.5]} 49... Kh7 {[%clk 0:00:32.2]}
50. Kg3 {[%clk 0:00:37.4]} 50... Rg1+ {[%clk 0:00:30.9]} 51. Kh4 {[%clk
0:00:34.8]} 51... Ra1 {[%clk 0:00:08.6]} 52. Kg5 {[%clk 0:00:33.2]} 52... f4
{[%clk 0:00:06.6]} 53. exf4 {[%clk 0:00:32.6]} 53... f5 {[%clk 0:00:06.2]} 54.
exf6 {[%clk 0:00:26.8]} 54... e5 {[%clk 0:00:06.5]} 55. fxe5 {[%clk 0:00:25.1]}
55... Rg1+ {[%clk 0:00:05.9]} 56. Kf5 {[%clk 0:00:25.2]} 56... Rg5+ {[%clk
0:00:05.9]} 57. Ke6 {[%clk 0:00:21.2]} 1-0

[Event "Early-Titled-Tuesday-Blitz-February-27-2024"]
[Site "Chess.com"]
[Date "2024.02.27"]
[Round "8"]
[White "Schachmalanders"]
[Black "martinmena"]
[Result "1/2-1/2"]
[WhiteElo "2465"]
[BlackElo "2258"]
[TimeControl "180+1"]
[EndTime "9:28:16 PST"]
[Termination "Game drawn - insufficient material"]

1. e4 {[%clk 0:02:55.5]} 1... c6 {[%clk 0:02:57.1]} 2. Nf3 {[%clk 0:02:53.9]}
2... d5 {[%clk 0:02:58]} 3. Nc3 {[%clk 0:02:54.1]} 3... Bg4 {[%clk 0:02:54.2]}
4. h3 {[%clk 0:02:53.6]} 4... Bxf3 {[%clk 0:02:54.5]} 5. Qxf3 {[%clk 0:02:54.5]}
5... e6 {[%clk 0:02:52.3]} 6. Be2 {[%clk 0:02:54]} 6... Nf6 {[%clk 0:02:50.5]}
7. d3 {[%clk 0:02:54.2]} 7... Bb4 {[%clk 0:02:49]} 8. a3 {[%clk 0:02:47.3]} 8...
Ba5 {[%clk 0:02:40.5]} 9. b4 {[%clk 0:02:37.2]} 9... Bb6 {[%clk 0:02:27]} 10.
O-O {[%clk 0:02:34.1]} 10... O-O {[%clk 0:02:18.5]} 11. Na4 {[%clk 0:02:03.3]}
11... Bd4 {[%clk 0:01:59.4]} 12. c3 {[%clk 0:01:59.9]} 12... Be5 {[%clk
0:01:58.1]} 13. d4 {[%clk 0:01:58.1]} 13... dxe4 {[%clk 0:01:56.4]} 14. Qe3
{[%clk 0:01:49]} 14... Bd6 {[%clk 0:01:53.8]} 15. Nc5 {[%clk 0:01:48.4]} 15...
Bxc5 {[%clk 0:01:53.4]} 16. bxc5 {[%clk 0:01:44.8]} 16... Nd5 {[%clk 0:01:47]}
17. Qd2 {[%clk 0:01:40.3]} 17... Qa5 {[%clk 0:01:26.5]} 18. c4 {[%clk
0:01:31.1]} 18... Qxd2 {[%clk 0:01:25.4]} 19. Bxd2 {[%clk 0:01:31.1]} 19... Ne7
{[%clk 0:01:24.6]} 20. Rab1 {[%clk 0:01:31.4]} 20... Nf5 {[%clk 0:01:09.6]} 21.
Bc3 {[%clk 0:01:21.7]} 21... Rd8 {[%clk 0:00:51]} 22. Rfd1 {[%clk 0:01:21.5]}
22... b6 {[%clk 0:00:47.9]} 23. cxb6 {[%clk 0:01:19.6]} 23... axb6 {[%clk
0:00:48.8]} 24. Rxb6 {[%clk 0:01:17.1]} 24... Rxa3 {[%clk 0:00:48.7]} 25. Bb2
{[%clk 0:01:16.9]} 25... Ra6 {[%clk 0:00:29]} 26. Rb7 {[%clk 0:01:09]} 26... Nd7
{[%clk 0:00:19.4]} 27. g4 {[%clk 0:00:44.4]} 27... Nd6 {[%clk 0:00:16.4]} 28.
Rc7 {[%clk 0:00:34.4]} 28... Ra4 {[%clk 0:00:12.1]} 29. Rxc6 {[%clk 0:00:32.3]}
29... Ne8 {[%clk 0:00:09.8]} 30. d5 {[%clk 0:00:25.2]} 30... exd5 {[%clk
0:00:09.1]} 31. Rxd5 {[%clk 0:00:24.7]} 31... Nef6 {[%clk 0:00:06.7]} 32. Rd1
{[%clk 0:00:20.1]} 32... Raa8 {[%clk 0:00:04.1]} 33. Rcd6 {[%clk 0:00:19]} 33...
Ra7 {[%clk 0:00:02.7]} 34. c5 {[%clk 0:00:15.5]} 34... Kf8 {[%clk 0:00:02.9]}
35. c6 {[%clk 0:00:16]} 35... Ke7 {[%clk 0:00:02.8]} 36. cxd7 {[%clk 0:00:16.2]}
36... Rdxd7 {[%clk 0:00:02.8]} 37. Bxf6+ {[%clk 0:00:16.4]} 37... gxf6 {[%clk
0:00:01.9]} 38. Rxd7+ {[%clk 0:00:17.3]} 38... Rxd7 {[%clk 0:00:01.7]} 39. Rxd7+
{[%clk 0:00:18.2]} 39... Kxd7 {[%clk 0:00:02.6]} 40. Kg2 {[%clk 0:00:18.4]}
40... Kd6 {[%clk 0:00:03.3]} 41. Kg3 {[%clk 0:00:19.2]} 41... Ke5 {[%clk
0:00:04.2]} 42. Bb5 {[%clk 0:00:18.5]} 42... f5 {[%clk 0:00:05.1]} 43. Be8
{[%clk 0:00:17.7]} 43... fxg4 {[%clk 0:00:05.3]} 44. hxg4 {[%clk 0:00:17.7]}
44... f5 {[%clk 0:00:05.7]} 45. gxf5 {[%clk 0:00:17.7]} 45... Kxf5 {[%clk
0:00:06.6]} 46. Bd7+ {[%clk 0:00:17.1]} 46... Kg5 {[%clk 0:00:06.9]} 47. Bc6
{[%clk 0:00:16.8]} 47... Kf5 {[%clk 0:00:07.2]} 48. Bd7+ {[%clk 0:00:17.3]}
48... Kg5 {[%clk 0:00:06.8]} 49. Bc8 {[%clk 0:00:17.8]} 49... h6 {[%clk
0:00:06.5]} 50. Bg4 {[%clk 0:00:17.2]} 50... h5 {[%clk 0:00:05.5]} 51. Bd7
{[%clk 0:00:17.1]} 51... h4+ {[%clk 0:00:05.9]} 52. Kh3 {[%clk 0:00:17.1]} 52...
Kf4 {[%clk 0:00:05.7]} 53. Bg4 {[%clk 0:00:16.4]} 53... e3 {[%clk 0:00:05]} 54.
fxe3+ {[%clk 0:00:16.4]} 54... Kxe3 {[%clk 0:00:05.4]} 55. Kxh4 {[%clk
0:00:17.3]} 1/2-1/2